bitfinex/quotes_SOLUSD_20220117
["timestamp","ask_amount","ask_price","bid_price","bid_amount"]
[1642445919684,46.73292086,139.54,139.47,25.72849958]
[1642445921587,46.73292086,139.54,139.47,23.9723]
[1642445922388,2.0441162,139.54,139.47,23.9723]
[1642445922590,2.0441162,139.54,139.47,25.72849958]
[1642445923490,41.48828322,139.54,139.47,25.72849958]
[1642445923889,39.44416702,139.54,139.47,25.72849958]
[1642445924491,2.0441162,139.55,139.47,25.72849958]
[1642445924790,2.0441162,139.55,139.48,10.29]
[1642445924990,2.0441162,139.55,139.49,24.6456]
[1642445925289,2.0441162,139.55,139.49,26.40179958]
[1642445925489,47.60833159,139.55,139.49,71.65065776]
[1642445926290,45.56421539,139.55,139.49,71.65065776]
[1642445926792,45.56421539,139.55,139.49,26.40179958]
[1642445927291,45.56421539,139.55,139.49,24.6456]
[1642445927690,45.56421539,139.55,139.49,26.40179958]
[1642445927918,45.56421539,139.55,139.49,66.50953399]
[1642445928718,45.56421539,139.55,139.49,26.40179958]
[1642445929218,45.56421539,139.55,139.49,24.6456]
[1642445930320,2.0441162,139.56,139.49,24.6456]
[1642445930321,45.54981353,139.52,139.49,24.6456]
[1642445930521,6.06439994,139.51,139.49,24.6456]
[1642445931122,6.06439994,139.51,139.45,41.47014728]
[1642445931521,6.06439994,139.51,139.45,43.22634686]
[1642445932121,6.06439994,139.51,139.45,1.75619958]
[1642445932323,6.06439994,139.51,139.44,1.99306471]
[1642445935024,6.06439994,139.51,139.45,1.75619958]
[1642445935225,6.06439994,139.51,139.46,43.62690271]
[1642445937326,6.06439994,139.51,139.45,1.75619958]
[1642445938632,6.06439994,139.51,139.45,25.04009958]
[1642445942032,6.06439994,139.51,139.45,23.2839]
[1642445951042,6.06439994,139.51,139.45,25.04009958]
[1642445952142,52.61475043,139.51,139.45,27.03316429]
[1642445952645,6.06439994,139.51,139.45,27.03316429]
[1642445953344,2.0441162,139.54,139.45,27.03316429]
[1642445953742,47.22222725,139.53,139.45,27.03316429]
[1642445953943,47.22222725,139.53,139.46,1.99306471]
[1642445954170,47.22222725,139.53,139.47,36.65769969]
[1642445954369,47.22222725,139.53,139.47,38.41389927]
[1642445961978,46.72222725,139.53,139.47,38.41389927]
[1642445967085,46.72222725,139.53,139.47,36.65769969]
[1642445967488,46.72222725,139.53,139.47,38.41389927]
[1642445969289,24.9415,139.55,139.47,38.41389927]
[1642445969493,24.9415,139.55,139.48,24.3853]
[1642445969890,24.9415,139.55,139.48,26.14149958]
[1642445970291,46.9345418,139.54,139.48,26.14149958]
[1642445970993,46.9345418,139.54,139.48,24.3853]
[1642445973195,48.978658,139.54,139.48,24.3853]
[1642445975897,2.0441162,139.53,139.48,24.3853]
[1642445981300,2.0441162,139.53,139.49,35.46265696]
[1642445981702,2.0441162,139.53,139.49,44.09185654]
[1642445983204,38.91204345,139.54,139.49,44.09185654]
[1642445983404,38.91204345,139.54,139.49,37.21885654]
[1642445984605,26.9856162,139.55,139.49,37.21885654]
[1642445985007,2.0441162,139.55,139.49,37.21885654]
[1642445985208,2.0441162,139.55,139.49,42.89285654]
[1642445985406,2.0441162,139.55,139.5,24.923]
[1642445985605,41.42070718,139.55,139.5,24.923]
[1642445986206,41.42070718,139.55,139.5,26.67919958]
[1642445987011,2.0441162,139.55,139.5,26.67919958]
[1642445987514,2.0441162,139.56,139.5,26.67919958]
[1642445988137,42.4953207,139.56,139.5,26.67919958]
[1642445989738,2.0441162,139.56,139.5,26.67919958]
[1642445991343,73.5341162,139.56,139.48,1.99306471]
[1642445992442,73.5341162,139.56,139.47,23.126]
[1642445992443,48.43678445,139.52,139.47,23.126]
[1642445993043,48.43678445,139.52,139.45,1.99306471]
[1642445993444,48.43678445,139.52,139.44,1.99306471]
[1642445993844,48.43678445,139.52,139.45,46.18739146]
[1642445995048,48.43678445,139.52,139.44,1.75619958]
[1642445995249,50.48090065,139.52,139.43,24.4253]
[1642445995451,50.48090065,139.52,139.44,1.99306471]
[1642445995850,50.48090065,139.52,139.44,3.74926429]
[1642445996054,50.48090065,139.52,139.45,36.40478149]
[1642445996252,50.48090065,139.52,139.44,1.99306471]
[1642445996654,50.48090065,139.52,139.45,1.75619958]
[1642445996953,50.48090065,139.52,139.43,28.17456429]
[1642445997360,50.48090065,139.52,139.44,48.85188375]
[1642445998554,50.48090065,139.52,139.44,50.60808333]
[1642445999957,50.48090065,139.52,139.44,48.85188375]
[1642446001359,50.48090065,139.52,139.43,26.41836471]
[1642446001759,61.23610065,139.52,139.43,26.41836471]
[1642446002461,73.5341162,139.51,139.43,24.4253]
[1642446003165,2.0441162,139.51,139.43,62.10316345]
[1642446003361,2.0441162,139.5,139.43,63.85936303]
[1642446003560,43.22385337,139.49,139.43,63.85936303]
[1642446005060,2.0441162,139.51,139.43,63.85936303]
[1642446006062,41.04253214,139.5,139.43,63.85936303]
[1642446006261,2.0441162,139.51,139.43,63.85936303]
[1642446006462,2.0441162,139.51,139.43,71.95436303]
[1642446006863,2.0441162,139.52,139.43,73.94742774]
[1642446007263,46.1400388,139.52,139.43,73.94742774]
[1642446007663,46.1400388,139.52,139.43,84.69982774]
[1642446007864,44.0959226,139.52,139.43,84.69982774]
[1642446008770,44.0959226,139.52,139.44,1.99306471]
[1642446009267,24.7214162,139.53,139.46,43.73823312]
[1642446009468,2.0441162,139.53,139.46,43.73823312]
[1642446009667,2.0441162,139.53,139.48,15.3951147]
[1642446009869,2.0441162,139.53,139.48,23.7051147]
[1642446010268,2.0441162,139.53,139.49,35.75608881]
[1642446010668,2.0441162,139.54,139.5,1.75619958]
[1642446011076,2.0441162,139.54,139.5,3.06946788]
[1642446011772,2.0441162,139.56,139.5,3.06946788]
[1642446013774,2.0441162,139.56,139.5,1.3132683]
[1642446014801,2.0441162,139.56,139.53,7.69755735]
[1642446015005,6.06439994,139.55,139.54,7.69755735]
[1642446017407,45.86591932,139.57,139.54,7.69755735]
[1642446018014,2.0441162,139.58,139.54,7.69755735]
[1642446019209,39.01556,139.57,139.54,7.69755735]
[1642446019508,6.06439994,139.56,139.54,7.69755735]
[1642446020109,6.06439994,139.56,139.55,7.69755735]
[1642446020309,6.06439994,139.56,139.55,15.3951147]
[1642446021714,2.0441162,139.58,139.55,15.3951147]
[1642446021914,46.66894118,139.58,139.55,16.708383]
[1642446022111,6.06439994,139.57,139.55,16.708383]
[1642446023115,57.41954118,139.58,139.55,16.708383]
[1642446024321,128.90954118,139.58,139.55,16.708383]
[1642446025362,128.90954118,139.58,139.55,1.3132683]
[1642446025520,128.90954118,139.58,139.56,7.69755735]
[1642446025719,128.90954118,139.58,139.56,15.3951147]
[1642446026320,84.2847162,139.58,139.56,15.3951147]
[1642446026521,12.3341162,139.59,139.56,15.3951147]
[1642446026721,3.03219997,139.58,139.56,15.3951147]
[1642446027024,3.03219997,139.57,139.56,15.3951147]
[1642446027621,3.03219997,139.58,139.56,15.3951147]
[1642446027820,3.03219997,139.58,139.56,23.8161147]
[1642446028023,2.0441162,139.6,139.56,23.8161147]
[1642446028621,2.0441162,139.61,139.56,23.8161147]
[1642446028821,2.0441162,139.61,139.56,15.3951147]
[1642446029023,38.87524958,139.6,139.55,1.3132683]
[1642446029226,71.65,139.59,139.49,23.221]
[1642446029825,2.0441162,139.58,139.49,25.21406471]
[1642446030023,41.31737126,139.57,139.49,25.21406471]
[1642446030925,2.0441162,139.54,139.49,23.221]
[1642446031124,39.02198779,139.54,139.49,23.221]
[1642446031326,2.0441162,139.54,139.49,23.221]
[1642446031824,2.0441162,139.55,139.49,23.221]
[1642446033327,35.28446489,139.54,139.49,23.221]
[1642446033728,37.32858109,139.54,139.49,23.221]
[1642446034129,2.0441162,139.54,139.49,23.221]
[1642446035029,44.83171074,139.54,139.49,23.221]
[1642446036530,42.78759454,139.54,139.49,23.221]
[1642446038531,44.83171074,139.54,139.49,23.221]
[1642446038732,2.0441162,139.54,139.49,23.221]
[1642446039332,2.0441162,139.55,139.49,23.221]
[1642446039732,37.42042094,139.54,139.49,23.221]
[1642446041461,37.42042094,139.54,139.49,24.97719958]
[1642446041661,37.42042094,139.54,139.49,23.221]
[1642446042662,2.0441162,139.55,139.49,23.221]
[1642446043062,2.0441162,139.54,139.49,23.221]
[1642446043664,2.0441162,139.54,139.5,42.71255406]
[1642446044066,2.0441162,139.55,139.5,42.71255406]
[1642446045870,2.0441162,139.55,139.49,23.221]
[1642446046869,2.0441162,139.55,139.49,65.0070364]
[1642446047171,2.0441162,139.55,139.49,23.221]
[1642446048669,2.0441162,139.55,139.49,71.59124025]
[1642446048870,2.0441162,139.54,139.49,71.59124025]
[1642446049170,45.97975298,139.53,139.49,23.221]
[1642446049771,2.0441162,139.54,139.49,23.221]
[1642446050772,2.0441162,139.54,139.5,36.91585969]
[1642446050972,2.0441162,139.53,139.5,36.91585969]
[1642446051173,2.0441162,139.53,139.49,23.221]
[1642446052072,50.83428515,139.53,139.49,23.221]
[1642446053674,2.0441162,139.53,139.49,23.221]
[1642446054676,2.0441162,139.53,139.5,38.90074111]
[1642446054877,2.0441162,139.54,139.5,38.90074111]
[1642446056074,2.0441162,139.54,139.49,23.221]
[1642446056675,2.0441162,139.54,139.47,22.7868]
[1642446057676,2.0441162,139.54,139.47,47.7836]
[1642446057877,2.0441162,139.53,139.47,47.7836]
[1642446061783,48.21648619,139.54,139.47,47.7836]
[1642446062584,2.0441162,139.53,139.47,47.7836]
[1642446067224,2.0441162,139.54,139.47,47.7836]
[1642446067823,2.0441162,139.54,139.48,10.29]
[1642446068024,2.0441162,139.54,139.49,23.8484]
[1642446068223,2.0441162,139.54,139.49,34.1384]
[1642446068726,2.0441162,139.54,139.5,46.90877344]
[1642446069023,39.04651888,139.55,139.5,46.90877344]
[1642446069423,2.0441162,139.56,139.5,46.90877344]
[1642446069623,2.0441162,139.56,139.51,23.7034]
[1642446071229,46.79302727,139.55,139.51,23.7034]
[1642446071626,48.83714347,139.55,139.51,23.7034]
[1642446072025,48.83714347,139.55,139.52,1.3119205]
[1642446072227,2.0441162,139.55,139.52,1.3119205]
[1642446073127,6.06439994,139.54,139.52,1.3119205]
[1642446074929,2.0441162,139.55,139.52,1.3119205]
[1642446076330,40.69247546,139.55,139.52,1.3119205]
[1642446077633,6.06439994,139.54,139.52,1.3119205]
[1642446078232,40.69247546,139.55,139.52,1.3119205]
[1642446078437,47.0,139.54,139.47,10.29]
[1642446078637,47.0,139.54,139.46,1.99306471]
[1642446079135,10.29,139.53,139.46,1.99306471]
[1642446079336,47.3681149,139.51,139.46,1.99306471]
[1642446079634,52.8711149,139.51,139.46,1.99306471]
[1642446079834,52.8711149,139.51,139.45,38.68703922]
[1642446080034,63.6286149,139.51,139.45,38.68703922]
[1642446080633,10.7575,139.51,139.45,38.68703922]
[1642446080835,2.0441162,139.53,139.45,38.68703922]
[1642446081035,2.0441162,139.53,139.46,24.6842]
[1642446081236,2.0441162,139.51,139.46,24.6842]
[1642446081437,2.0441162,139.51,139.45,38.68703922]
[1642446082538,2.0441162,139.51,139.46,1.75619958]
[1642446083335,2.0441162,139.51,139.45,38.68703922]
[1642446083736,10.29,139.55,139.45,40.68010393]
[1642446083737,2.0441162,139.53,139.45,40.68010393]
[1642446083935,2.0441162,139.53,139.46,24.9346]
[1642446084437,49.17460476,139.53,139.46,24.9346]
[1642446085637,2.0441162,139.51,139.43,1.99306471]
[1642446086039,2.0441162,139.51,139.44,43.48765078]
[1642446087038,2.0441162,139.5,139.44,43.48765078]
[1642446087838,12.8006162,139.51,139.44,43.48765078]
[1642446088240,49.25883952,139.5,139.44,43.48765078]
[1642446088641,12.8006162,139.51,139.44,43.48765078]
[1642446089142,2.0441162,139.51,139.44,43.48765078]
[1642446089343,2.0441162,139.51,139.45,24.934]
[1642446093345,2.0441162,139.5,139.45,24.934]
[1642446093545,45.10598636,139.49,139.45,24.934]
[1642446094047,2.0441162,139.5,139.45,24.934]
[1642446094247,82.4051,139.52,139.45,24.934]
[1642446095048,41.37601767,139.51,139.45,24.934]
[1642446096453,41.37601767,139.51,139.4,70.20939958]
[1642446096655,71.65,139.49,139.41,23.7035]
[1642446097152,71.65,139.47,139.38,124.66516471]
[1642446097352,79.759,139.47,139.38,138.14956471]
[1642446097550,79.759,139.47,139.38,136.1565]
[1642446098550,90.5182,139.47,139.38,111.7]
[1642446098751,90.5182,139.47,139.35,358.86480483]
[1642446098953,10.29,139.46,139.35,381.85330483]
[1642446099152,10.29,139.46,139.35,358.86480483]
[1642446099552,10.29,139.46,139.36,43.96921619]
[1642446099553,45.68795458,139.45,139.36,43.96921619]
[1642446099755,45.68795458,139.45,139.35,358.86480483]
[1642446099756,10.29,139.44,139.35,358.86480483]
[1642446099951,15.701,139.44,139.32,1.99306471]
[1642446100152,71.65,139.43,139.32,1.99306471]
[1642446100386,81.94,139.43,139.32,1.99306471]
[1642446100578,92.7029,139.43,139.32,1.99306471]
[1642446100876,39.30257879,139.42,139.33,39.60985707]
[1642446101279,71.65,139.41,139.33,39.60985707]
[1642446101677,82.4141,139.41,139.33,39.60985707]
[1642446102177,10.7641,139.41,139.33,39.60985707]
[1642446102980,71.65,139.4,139.33,39.60985707]
[1642446103380,35.03043937,139.39,139.33,39.60985707]
[1642446104583,117.44553937,139.39,139.33,39.60985707]
[1642446105381,126.04153937,139.39,139.33,39.60985707]
[1642446105883,91.0111,139.39,139.33,39.60985707]
[1642446106484,82.4151,139.39,139.33,39.60985707]
[1642446106682,127.49092178,139.39,139.33,39.60985707]
[1642446107484,55.84092178,139.39,139.33,39.60985707]
[1642446108084,55.84092178,139.39,139.29,49.74056471]
[1642446108284,71.65,139.38,139.29,49.74056471]
[1642446108486,55.84092178,139.39,139.29,49.74056471]
[1642446108991,55.84092178,139.39,139.3,43.78613974]
[1642446109187,55.84092178,139.39,139.33,1.99306471]
[1642446109386,55.84092178,139.39,139.33,50.53382579]
[1642446109786,55.84092178,139.39,139.33,1.99306471]
[1642446110090,71.65,139.38,139.32,1.99306471]
[1642446110889,71.65,139.38,139.32,38.99654948]
[1642446111087,71.65,139.38,139.32,37.00348477]
[1642446111387,55.84092178,139.39,139.32,37.00348477]
[1642446111787,71.65,139.38,139.32,37.00348477]
[1642446112788,82.4161,139.38,139.32,37.00348477]
[1642446113188,82.4161,139.38,139.31,1.99306471]
[1642446113388,88.4061,139.38,139.31,1.99306471]
[1642446113789,88.4061,139.38,139.3,1.99306471]
[1642446114188,88.4061,139.38,139.3,47.67856044]
[1642446115504,82.4161,139.38,139.3,47.67856044]
[1642446116091,10.7661,139.38,139.3,47.67856044]
[1642446116291,10.7661,139.38,139.31,1.99306471]
[1642446116493,82.4161,139.38,139.31,1.99306471]
[1642446116693,10.7661,139.38,139.31,1.99306471]
[1642446117293,10.7661,139.38,139.3,47.67856044]
[1642446118294,10.7661,139.38,139.31,1.99306471]
[1642446118594,42.65049999,139.36,139.31,1.99306471]
[1642446119194,82.4171,139.37,139.31,1.99306471]
[1642446119396,82.4171,139.37,139.3,45.68549573]
[1642446120096,71.65,139.37,139.3,45.68549573]
[1642446121099,47.08440365,139.36,139.3,45.68549573]
[1642446121298,47.08440365,139.36,139.29,47.7475]
[1642446122398,47.08440365,139.36,139.3,39.18278183]
[1642446123200,82.4167,139.37,139.3,39.18278183]
[1642446123901,82.4167,139.37,139.31,1.99306471]
[1642446124099,44.10518744,139.36,139.31,1.99306471]
[1642446125102,62.36568744,139.36,139.31,1.99306471]
[1642446125603,62.36568744,139.36,139.3,1.99306471]
[1642446126004,82.4184,139.35,139.3,1.99306471]
[1642446126806,82.4184,139.35,139.29,1.99306471]
[1642446127806,82.4184,139.35,139.28,1.99306471]
[1642446128706,88.7504,139.35,139.28,1.99306471]
[1642446129004,88.7504,139.35,139.29,1.99306471]
[1642446129407,99.0404,139.35,139.29,1.99306471]
[1642446129607,99.0404,139.35,139.26,4.08087908]
[1642446129608,99.0404,139.35,139.28,1.99306471]
[1642446130806,99.0404,139.35,139.29,0.77546834]
[1642446135843,49.44774587,139.32,139.27,1.99306471]
[1642446136039,81.94,139.31,139.24,4.08087908]
[1642446137038,71.65,139.28,139.24,4.08087908]
[1642446137238,71.65,139.28,139.2,22.6458]
[1642446138038,110.93678144,139.28,139.21,46.68565374]
[1642446138241,110.93678144,139.28,139.21,50.78051443]
[1642446139040,71.65,139.28,139.21,50.78051443]
[1642446139240,71.65,139.28,139.21,46.68565374]
[1642446139642,21.065,139.29,139.21,46.68565374]
[1642446140042,59.97899792,139.29,139.22,4.09469237]
[1642446140241,71.65,139.28,139.22,4.09469237]
[1642446140541,82.4237,139.28,139.22,4.09469237]
[1642446140742,87.9747,139.28,139.22,4.09469237]
[1642446141952,87.9747,139.28,139.21,41.509384]
[1642446142551,82.4237,139.28,139.21,41.509384]
[1642446143752,88.9507,139.28,139.21,41.509384]
[1642446145651,88.9507,139.28,139.2,26.72667908]
[1642446145851,99.2407,139.28,139.2,26.72667908]
[1642446147053,99.2407,139.28,139.21,41.94774293]
[1642446148055,99.2407,139.28,139.19,4.08087908]
[1642446149156,99.2407,139.28,139.18,4.08087908]
[1642446149357,123.3712,139.28,139.18,4.08087908]
[1642446150160,123.3712,139.28,139.18,4.09597835]
[1642446151160,123.3712,139.28,139.2,40.88295057]
[1642446152160,123.3712,139.28,139.27,0.1306214]
[1642446152460,129.43559994,139.28,139.2,40.88295057]
[1642446152888,129.43559994,139.28,139.19,24.9899]
[1642446153260,129.43559994,139.28,139.27,0.7782575]
[1642446153459,105.30509994,139.28,139.19,24.9899]
[1642446153860,105.30509994,139.28,139.19,66.90783133]
[1642446154861,98.77809994,139.28,139.19,66.90783133]
[1642446164068,98.77809994,139.28,139.19,24.9899]
[1642446171401,88.48809994,139.28,139.19,26.74609958]
[1642446171605,88.48809994,139.28,139.2,4.09549678]
[1642446171905,88.48809994,139.28,139.22,39.02018642]
[1642446174304,77.71439994,139.28,139.22,39.02018642]
[1642446174706,71.65,139.28,139.22,39.02018642]
[1642446175106,10.7725,139.3,139.22,39.02018642]
[1642446175305,10.7725,139.3,139.23,23.7364]
[1642446176310,81.94,139.31,139.23,23.7364]
[1642446177513,81.94,139.31,139.23,25.49259958]
[1642446180416,81.94,139.31,139.24,4.0942789]
[1642446180615,81.94,139.31,139.25,42.90082082]
[1642446181417,10.29,139.31,139.25,42.90082082]
[1642446183620,10.7709,139.32,139.25,42.90082082]
[1642446185521,82.4209,139.32,139.25,42.90082082]
[1642446186624,82.4209,139.32,139.26,23.2631]
[1642446190626,21.0595,139.34,139.26,23.2631]
[1642446190826,92.7095,139.34,139.26,23.2631]
[1642446191025,10.29,139.34,139.26,23.2631]
[1642446191228,10.29,139.34,139.26,25.01929958]
[1642446194432,82.4184,139.35,139.26,25.01929958]
[1642446195734,10.7684,139.35,139.26,25.01929958]
[1642446195935,9.76638417,139.42,139.27,0.32498822]
[1642446196136,6.03424919,139.42,139.27,16.34098822]
[1642446196334,6.03424919,139.42,139.28,1.75619958]
[1642446196534,6.03424919,139.42,139.29,33.7389]
[1642446196734,54.94814672,139.42,139.3,44.55130474]
[1642446196934,71.65,139.41,139.3,56.59750432]
[1642446197338,75.73934598,139.41,139.31,25.06589958]
[1642446197535,75.73934598,139.41,139.32,10.7626]
[1642446197734,75.73934598,139.41,139.33,39.02686677]
[1642446197938,75.73934598,139.41,139.34,23.8399]
[1642446198335,4.08934598,139.41,139.34,23.8399]
[1642446199637,59.67669753,139.42,139.34,23.8399]
[1642446200842,71.65,139.41,139.34,23.8399]
[1642446205072,59.67669753,139.42,139.34,23.8399]
[1642446205272,10.7615,139.44,139.34,36.35759958]
[1642446205873,10.7615,139.44,139.34,35.47759958]
[1642446206272,41.15253368,139.43,139.34,35.47759958]
[1642446208575,14.84954598,139.46,139.34,35.47759958]
[1642446208875,4.08934598,139.46,139.35,10.29]
[1642446209073,4.08934598,139.46,139.38,10.757]
[1642446209274,10.29,139.5,139.39,24.2412]
[1642446209275,75.73934598,139.48,139.39,24.2412]
[1642446209474,75.73934598,139.48,139.4,38.87897381]
[1642446209875,4.08934598,139.48,139.4,40.63517339]
[1642446210075,4.08934598,139.48,139.4,51.39237339]
[1642446210674,4.08934598,139.49,139.4,51.39237339]
[1642446211476,50.78121898,139.49,139.4,51.39237339]
[1642446211678,46.691873,139.49,139.4,51.39237339]
[1642446213081,75.73934598,139.5,139.4,51.39237339]
[1642446213281,75.73934598,139.5,139.41,1.75619958]
[1642446213479,4.08934598,139.5,139.42,10.755]
[1642446213884,4.08934598,139.5,139.43,1.75619958]
[1642446214079,4.08934598,139.5,139.44,36.30501848]
[1642446214479,75.73934598,139.5,139.42,10.7553]
[1642446214681,71.65,139.5,139.42,10.7553]
[1642446214879,62.54011535,139.51,139.42,10.7553]
[1642446215680,62.54011535,139.51,139.4,10.7569]
[1642446215880,85.89901535,139.51,139.4,10.7569]
[1642446216681,85.89901535,139.51,139.41,38.53123072]
[1642446216881,85.89901535,139.51,139.41,49.28773072]
[1642446217284,18.9123903,139.5,139.41,49.28773072]
[1642446217985,14.84604598,139.5,139.41,49.28773072]
[1642446218385,86.49604598,139.5,139.41,49.28773072]
[1642446218887,4.09077392,139.49,139.41,49.28773072]
[1642446219188,43.05308979,139.48,139.41,49.28773072]
[1642446219985,14.84817392,139.49,139.41,49.28773072]
[1642446220413,14.84674598,139.49,139.41,49.28773072]
[1642446221090,4.08934598,139.49,139.41,49.28773072]
[1642446221290,4.08934598,139.49,139.41,51.0439303]
[1642446222088,4.08934598,139.5,139.41,51.0439303]
[1642446222488,4.08934598,139.5,139.41,61.3339303]
[1642446222888,4.08934598,139.51,139.41,61.3339303]
[1642446223589,8.17952959,139.52,139.41,61.3339303]
[1642446226595,8.17952959,139.52,139.44,10.7545]
[1642446226798,8.17952959,139.52,139.45,71.70354448]
[1642446226995,14.84374598,139.53,139.45,71.70354448]
[1642446228097,4.08992398,139.52,139.45,71.70354448]
[1642446228502,4.08992398,139.52,139.45,73.45974406]
[1642446228996,8.17926996,139.52,139.45,73.45974406]
[1642446229199,8.17926996,139.52,139.45,84.21354406]
[1642446230399,40.5025909,139.53,139.45,84.21354406]
[1642446231601,4.08934598,139.53,139.45,84.21354406]
[1642446232901,40.2468043,139.55,139.45,84.21354406]
[1642446233503,40.2468043,139.55,139.45,94.50354406]
[1642446234710,4.08934598,139.56,139.45,94.50354406]
[1642446235539,8.17814961,139.56,139.49,10.7489]
[1642446235745,8.17814961,139.56,139.5,42.14277128]
[1642446235945,46.17045742,139.56,139.5,42.14277128]
[1642446236147,46.17045742,139.56,139.49,36.51309958]
[1642446236549,37.99230781,139.56,139.49,36.51309958]
[1642446237150,37.99230781,139.56,139.5,45.73565074]
[1642446237750,37.99230781,139.56,139.49,25.76419958]
[1642446238753,37.99230781,139.56,139.49,66.30549644]
[1642446238951,42.08165379,139.56,139.49,66.30549644]
[1642446240583,52.83385379,139.56,139.49,66.30549644]
[1642446241381,52.83385379,139.56,139.49,65.80549644]
[1642446242285,52.83385379,139.56,139.46,1.75619958]
[1642446242582,48.74450781,139.56,139.46,1.75619958]
[1642446243183,71.57390781,139.56,139.47,46.23329321]
[1642446243384,75.66325379,139.56,139.47,46.23329321]
[1642446243583,75.66325379,139.56,139.47,47.98949279]
[1642446244184,8.1784407,139.55,139.47,47.98949279]
[1642446244384,8.1784407,139.55,139.48,23.7809]
[1642446244987,8.1784407,139.55,139.48,25.53709958]
[1642446246689,8.1784407,139.55,139.46,1.75619958]
[1642446246895,36.6912407,139.55,139.46,1.75619958]
[1642446247091,36.6912407,139.55,139.44,24.0707]
[1642446247689,36.6912407,139.55,139.45,39.2136164]
[1642446248592,36.6912407,139.55,139.44,24.0707]
[1642446248793,10.7549,139.52,139.44,24.0707]
[1642446249192,88.9759,139.52,139.44,24.0707]
[1642446249593,88.9759,139.52,139.42,23.4973]
[1642446249594,43.5318123,139.51,139.43,37.78296861]
[1642446249999,43.5318123,139.51,139.43,39.53916819]
[1642446250200,54.2880123,139.51,139.43,39.53916819]
[1642446250426,54.2880123,139.51,139.43,62.56386819]
[1642446251698,43.5318123,139.51,139.43,62.56386819]
[1642446251897,4.08934598,139.52,139.44,1.75619958]
[1642446252300,4.08934598,139.52,139.44,12.04619958]
[1642446252697,4.08934598,139.52,139.45,1.75619958]
[1642446252900,4.08934598,139.52,139.46,45.58390302]
[1642446253297,49.4784147,139.53,139.47,1.75619958]
[1642446253497,4.08934598,139.54,139.47,1.75619958]
[1642446254097,4.08934598,139.55,139.47,1.75619958]
[1642446254602,46.29128404,139.55,139.47,12.50759958]
[1642446255002,42.20193806,139.55,139.48,1.75619958]
[1642446255200,42.20193806,139.55,139.49,46.06446367]
[1642446255799,42.20193806,139.55,139.49,47.82066325]
[1642446256205,42.20193806,139.55,139.49,46.06446367]
[1642446256901,2.04444658,139.53,139.49,46.06446367]
[1642446257901,2.04444658,139.52,139.49,46.06446367]
[1642446260109,44.24638464,139.55,139.49,46.06446367]
[1642446261304,2.04444658,139.55,139.49,46.06446367]
[1642446262807,2.04444658,139.56,139.5,1.75619958]
[1642446263006,2.04444658,139.56,139.5,26.39759958]
[1642446263204,2.04444658,139.56,139.51,10.29]
[1642446263404,2.04444658,139.56,139.51,12.04619958]
[1642446263605,35.02211269,139.55,139.51,12.04619958]
[1642446264706,35.02211269,139.55,139.48,1.75619958]
[1642446265310,43.47111269,139.55,139.48,1.75619958]
[1642446265608,43.47111269,139.55,139.45,1.75619958]
[1642446265808,125.87391269,139.55,139.45,1.75619958]
[1642446266008,125.87391269,139.55,139.44,34.3387]
[1642446266210,136.16391269,139.55,139.44,24.0487]
[1642446266613,136.16391269,139.55,139.45,38.52569676]
[1642446266614,2.04444658,139.54,139.45,38.52569676]
[1642446266811,12.79824658,139.54,139.45,38.52569676]
[1642446267012,2.04444658,139.54,139.45,38.52569676]
[1642446267212,73.69444658,139.54,139.43,446.68467288]
[1642446267414,79.05944658,139.54,139.43,469.95997288]
[1642446267915,71.65,139.52,139.43,469.95997288]
[1642446268313,32.38724658,139.54,139.39,38.52053169]
[1642446268314,71.65,139.5,139.39,38.52053169]
[1642446268511,77.577,139.5,139.39,38.52053169]
[1642446268714,10.29,139.49,139.38,25.55503383]
[1642446269111,10.7588,139.47,139.38,1.88253383]
[1642446269312,19.2928,139.47,139.38,1.88253383]
[1642446269711,40.84369786,139.46,139.38,44.49419669]
[1642446269914,40.84369786,139.46,139.38,42.61166286]
[1642446270212,12.33444658,139.49,139.38,44.36786244]
[1642446270416,12.33444658,139.49,139.39,22.6144]
[1642446270715,71.65,139.48,139.38,42.61166286]
[1642446270915,81.94,139.48,139.38,42.61166286]
[1642446271115,45.12575035,139.47,139.38,42.61166286]
[1642446271517,10.7596,139.46,139.38,42.61166286]
[1642446272320,45.12575035,139.47,139.38,42.61166286]
[1642446272622,10.29,139.48,139.38,42.61166286]
[1642446272819,21.0485,139.48,139.38,44.36786244]
[1642446273445,21.0485,139.48,139.39,23.6794]
[1642446273647,39.32844505,139.47,139.39,23.6794]
[1642446275649,110.97844505,139.47,139.38,42.61166286]
[1642446275846,50.08734505,139.47,139.38,42.61166286]
[1642446276046,2.04444658,139.49,139.39,1.75619958]
[1642446276249,2.04444658,139.49,139.39,25.38889958]